fUSD/lending_fUSD_20240815
["ID","MTS","AMOUNT","RATE_DAILY","PERIOD"]
[335006711,1723734633709,-2684.50176644,0.000109,2]
[335006712,1723734633718,-3121.9051,0.000109,2]
[335006713,1723734633727,-5364.9127,0.000109,2]
[335006714,1723734633737,-172.26639675,0.000109,2]
[335006715,1723734633746,-152.88036892,0.000109,2]
[335006716,1723734633755,-3340.19672784,0.000109,2]
[335006717,1723734633764,-318.62822439,0.000109,2]
[335006718,1723734633774,-970.08715885,0.000109,2]
[335006719,1723734633783,-317.29982016,0.000109,2]
[335006720,1723734633791,-13305.54205551,0.00010993,2]
[335006721,1723734633801,-500.0,0.00010999,2]
[335006722,1723734633810,-420.8625003,0.00010999,2]
[335006723,1723734633819,-505.61123302,0.00010999,2]
[335006724,1723734633828,-352.71145668,0.00010999,2]
[335006725,1723734633837,-568.21767538,0.00010999,2]
[335006726,1723734633846,-500.0,0.00010999,2]
[335006727,1723734633856,-711.0,0.00011,2]
[335006728,1723734633867,-39966.13775791,0.00011,2]
[335006729,1723734633879,-20198.14506221,0.00011,2]
[335006730,1723734633888,-243035.20433072,0.00011,2]
[335006731,1723734633899,-296810.00000015,0.00011,2]
[335006732,1723734633910,-6900.37173994,0.00011,2]
[335006735,1723734638628,-199.40325005,0.000108,2]
[335006736,1723734638638,-634.0,0.00011,2]
[335006737,1723734638647,-18241.33532862,0.00011,2]
[335006738,1723734638746,-2364.01451426,0.00011,2]
[335006739,1723734638757,-724.97184001,0.00011,2]
[335006740,1723734638769,-2005.2288,0.00011,2]
[335006741,1723734638780,-866.69503841,0.00011,2]
[335006742,1723734638792,-2709.48663959,0.00011,2]
[335006743,1723734638803,-32073.67906337,0.00011,2]
[335006744,1723734638814,-11129.9312,0.00011,2]
[335006745,1723734638824,-2603.10643675,0.00011,2]
[335006746,1723734638854,-756.50129239,0.00011,2]
[335006747,1723734638865,-1393.41253977,0.00011,2]
[335006748,1723734638882,-1559.04212574,0.00011,2]
[335006749,1723734638893,-162621.03563166,0.00011,2]
[335006750,1723734639035,-4806.51264701,0.00011,2]
[335006751,1723734639054,-425.4,0.00011,2]
[335006752,1723734639080,-421.78588728,0.00011,2]
[335006753,1723734639091,-434.87313702,0.00011,2]
[335006755,1723734640103,-391.951146,0.00011,2]
[335006756,1723734640114,-337.94,0.00011,2]
[335006757,1723734640181,-7627.13619108,0.00011,2]
[335006758,1723734640192,-998.486475,0.00011,2]
[335006759,1723734640203,-677.86115073,0.00011,2]
[335006760,1723734640214,-1458.91842534,0.00011,2]
[335006761,1723734640225,-638.27481339,0.00011,2]
[335006762,1723734640234,-2287.71144893,0.00011,2]
[335006763,1723734640246,-3015.37057037,0.00011,2]
[335006764,1723734640366,-969.65529697,0.00011,2]
[335006766,1723734640385,-79453.25159359,0.00011,2]
[335006768,1723734640401,-4125.98200796,0.00011,2]
[335006770,1723734640415,-4898.45,0.00011,2]
[335006778,1723734642991,-614.29174979,0.00011,2]
[335006781,1723734643489,-362.27066344,0.00011,2]
[335006782,1723734643508,-3972.09929284,0.00011,2]
[335006785,1723734643521,-1280.86676232,0.00011,2]
[335006791,1723734645080,-1298942.59626715,0.00011,2]
[335006792,1723734645093,-343.41573213,0.00011,2]
[335006793,1723734645104,-236954.29651387,0.00011,2]
[335006794,1723734645115,-1377.53454,0.00011,2]
[335006795,1723734645129,-977.79543901,0.00011,2]
[335006796,1723734645140,-8823.99346952,0.00011,2]
[335006797,1723734645150,-20464.44061295,0.00011,2]
[335006798,1723734645161,-2248.95674392,0.00011,2]
[335006799,1723734645172,-2551.14997692,0.00011,2]
[335006800,1723734645183,-177805.24882099,0.00011,2]
[335006814,1723734646246,-574.0,0.00011,2]
[335006815,1723734646256,-466.67985396,0.00011,2]
[335006816,1723734646267,-1321.4022825,0.00011,2]
[335006817,1723734646278,-1869.3662922,0.00011,2]
[335006818,1723734646295,-592.20419882,0.00011,2]
[335006819,1723734646306,-6372.4344052,0.00011,2]
[335006820,1723734646374,-1009.93462608,0.00011,2]
[335006821,1723734646386,-530.6,0.00011,2]
[335006822,1723734646456,-1806.16502112,0.00011,2]
[335006823,1723734646469,-403.53386833,0.00011,2]
[335006826,1723734690614,23900.0,9.89e-05,2]
[335006827,1723734706417,427.23,9.968e-05,2]
[335006828,1723734708369,4672.83,9.888e-05,2]
[335006829,1723734743846,301.07270147,9.89e-05,2]
[335006830,1723734794954,2249.6,9.889e-05,2]
[335006831,1723734835832,1973.89,9.889e-05,2]
[335006832,1723734847382,1104.71,9.887e-05,2]
[335006833,1723734887854,153.79,7.909e-05,2]
[335006834,1723734892368,200.0,9.886e-05,2]
[335006835,1723734912048,173.6,9.888e-05,2]
[335006836,1723734927811,1039.32,9.888e-05,2]
[335006838,1723734974714,200.0,9.888e-05,2]
[335006839,1723734984103,2751.48,9.889e-05,2]
[335006841,1723735030766,250.0,9.8e-05,2]
[335006842,1723735037357,1852.42,9.8e-05,2]
[335006843,1723735204970,8570.69122314,9.797e-05,2]
[335006844,1723735204992,10000.0,9.797e-05,2]
[335006845,1723735205017,5329.30877686,9.797e-05,2]
[335006846,1723735230268,157.41,9.889e-05,2]
[335006847,1723735291181,-5785.93024609,9.99e-05,2]
[335006848,1723735291211,-150.0,9.998e-05,2]
[335006849,1723735291238,-20408.54097705,9.999e-05,2]
[335006850,1723735301698,650.87,8.219e-05,2]
[335006851,1723735338250,552.35,9.796e-05,2]
[335006852,1723735413553,840.0,9.799e-05,2]
[335006853,1723735496265,250.0,9.797e-05,2]
[335006854,1723735516313,1358.55,9.797e-05,2]
[335006861,1723735699659,6348.23,9.794e-05,2]
[335006862,1723735699683,10000.0,9.794e-05,2]
[335006863,1723735699707,7551.77,9.794e-05,2]
[335006871,1723735794868,1271.18932031,9.794e-05,2]
[335006872,1723735795395,1177.04067969,9.794e-05,2]
[335006873,1723735795416,1894.39088677,9.794e-05,2]
[335006874,1723735807454,636.31,8.219e-05,2]
[335006875,1723735808377,337.03,9.796e-05,2]
[335006883,1723735832186,-8621.93644217,9.999e-05,2]
[335006885,1723735832196,-150.0,9.999e-05,2]
[335006886,1723735832207,-500.0,0.0001,2]
[335006887,1723735832217,-500.0,0.0001,2]
[335006888,1723735832226,-500.0,0.0001,2]
[335006889,1723735832236,-500.0,0.0001,2]
[335006890,1723735832250,-500.0,0.0001,2]
[335006891,1723735832260,-500.0,0.0001,2]
[335006892,1723735832270,-500.0,0.0001,2]
[335006893,1723735832280,-500.0,0.0001,2]
[335006894,1723735832289,-500.0,0.0001,2]
[335006895,1723735832299,-500.0,0.0001,2]
[335006896,1723735832309,-500.0,0.0001,2]
[335006897,1723735832318,-500.0,0.0001,2]
[335006898,1723735832328,-500.0,0.0001,2]
[335006899,1723735832337,-500.0,0.0001,2]
[335006900,1723735832347,-500.0,0.0001,2]
[335006901,1723735832357,-500.0,0.0001,2]
[335006902,1723735832366,-500.0,0.0001,2]
[335006903,1723735832376,-500.0,0.0001,2]
[335006904,1723735832385,-500.0,0.0001,2]
[335006905,1723735832395,-500.0,0.0001,2]
[335006906,1723735832405,-500.0,0.0001,2]
[335006907,1723735832415,-500.0,0.0001,2]
[335006908,1723735832425,-500.0,0.0001,2]
[335006909,1723735832435,-500.0,0.0001,2]
[335006910,1723735832444,-500.0,0.0001,2]
[335006911,1723735832454,-500.0,0.0001,2]
[335006912,1723735832464,-500.0,0.0001,2]
[335006913,1723735832474,-352.0,0.0001,2]
[335006914,1723735832485,-500.0,0.0001,2]
[335006915,1723735832497,-500.0,0.0001,2]
[335006916,1723735832512,-500.0,0.0001,2]
[335006917,1723735832522,-500.0,0.0001,2]
[335006918,1723735832531,-500.0,0.0001,2]
[335006919,1723735832542,-500.0,0.0001,2]
[335006920,1723735832551,-500.0,0.0001,2]
[335006921,1723735832561,-500.0,0.0001,2]
[335006922,1723735832571,-500.0,0.0001,2]
[335006923,1723735832581,-162.70003997,0.0001,2]
[335006924,1723735832594,-337.29996003,0.0001,2]
[335006925,1723735832603,-367.62265429,0.0001,2]
[335006926,1723735832616,-132.37734571,0.0001,2]
[335006927,1723735832626,-500.0,0.0001,2]
[335006928,1723735832636,-500.0,0.0001,2]
[335006929,1723735832645,-326.79,0.0001,2]
[335006930,1723735832655,-228.76336912,0.0001,2]
[335006931,1723735832664,-644.39907472,0.0001,2]
[335006932,1723735832677,-161.18346651,0.0001,2]
[335006933,1723735832688,-178.94,0.00010344,2]
[335006934,1723735832697,-372.95019615,0.00010465,2]
[335006935,1723735832709,-263.35980385,0.00010465,2]
[335006936,1723735832719,-327.92758472,0.00010659,2]
[335006937,1723735832728,-302.30988391,0.0001068,2]
[335006938,1723735832747,-848.74533437,0.0001068,2]
[335006939,1723735832761,-1000.0,0.000107,2]
[335006940,1723735832770,-1064.82408348,0.00010709,2]
[335006941,1723735832782,-404.4999995,0.00010709,2]
[335006942,1723735832793,-3132.3393828,0.00010709,2]
[335006943,1723735832804,-3164.75000067,0.00010709,2]
[335006944,1723735832816,-17444.07203292,0.00010709,2]
[335006945,1723735832827,-3487.45282919,0.00010709,2]
[335006946,1723735832839,-19088.63699241,0.00010709,2]
[335006947,1723735832850,-56968.91074779,0.00010709,2]
[335006948,1723735832861,-388.08475353,0.00010709,2]
[335006949,1723735832875,-27847.0306,0.00010709,2]
[335006950,1723735832890,-112009.39857771,0.00010709,2]
[335006951,1723735832900,-150.0,0.00010727,2]
[335006952,1723735832911,-150.0,0.00010727,2]
[335006953,1723735832920,-150.0,0.00010728,2]
[335006954,1723735832930,-16577.05,0.00010728,2]
[335006955,1723735832939,-299.99,0.00010728,2]
[335006956,1723735832949,-3589.77,0.00010728,2]
[335006957,1723735832960,-2361.98,0.00010728,2]
[335006958,1723735832971,-150.0,0.00010733,2]
[335006959,1723735832981,-650.18,0.00010733,2]
[335006960,1723735832990,-6509.84,0.00010733,2]
[335006961,1723735833005,-150.0,0.00010735,2]
[335006962,1723735833014,-1500.0,0.0001074,2]
[335006963,1723735833023,-1500.0,0.00010741,2]
[335006964,1723735833033,-499.99,0.00010743,2]
[335006965,1723735833042,-981.3,0.00010743,2]
[335006966,1723735833051,-150.99,0.00010743,2]
[335006967,1723735833060,-150.99,0.00010743,2]
[335006968,1723735833069,-150.0,0.00010747,2]
[335006969,1723735833078,-150.0,0.00010755,2]
[335006970,1723735833088,-3255.9473,0.00010759,2]
[335006971,1723735833097,-4289.745,0.00010759,2]
[335006972,1723735833106,-500.0,0.00010759,2]
[335006973,1723735833115,-745.2683,0.00010759,2]
[335006974,1723735833124,-100000.0,0.00010759,2]
[335006975,1723735833133,-1000.0,0.00010759,2]
[335006976,1723735833143,-2500.0,0.00010759,2]
[335006977,1723735833152,-150.0,0.00010759,2]
[335006978,1723735833161,-150.0,0.00010759,2]
[335006979,1723735833170,-150.0,0.0001076,2]
[335006980,1723735833179,-150.0,0.00010766,2]
[335006981,1723735833189,-1500.0,0.00010766,2]
[335006982,1723735833198,-150.0,0.00010771,2]
[335006983,1723735833207,-150.0,0.00010777,2]
[335006984,1723735833216,-150.0,0.00010782,2]
[335006985,1723735833226,-150.0,0.00010783,2]
[335006986,1723735833235,-150.0,0.00010785,2]
[335006987,1723735833248,-1500.0,0.00010787,2]
[335006988,1723735833257,-1500.0,0.0001079,2]
[335006989,1723735833267,-150.0,0.00010799,2]
[335006990,1723735833276,-150.0,0.00010804,2]
[335006991,1723735833285,-150.0,0.00010809,2]
[335006992,1723735833295,-1500.0,0.00010809,2]
[335006993,1723735833304,-1500.0,0.00010813,2]
[335006994,1723735833314,-150.0,0.00010817,2]
[335006995,1723735833323,-150.0,0.0001082,2]
[335006996,1723735833333,-300.0,0.00010821,2]
[335006997,1723735833342,-150.0,0.00010824,2]
[335006998,1723735833351,-150.0,0.00010826,2]
[335006999,1723735833361,-150.0,0.00010843,2]
[335007000,1723735833370,-300.0,0.00010844,2]
[335007001,1723735833379,-150.0,0.00010854,2]
[335007002,1723735833389,-1500.0,0.00010854,2]
[335007003,1723735833398,-150.0,0.00010855,2]
[335007004,1723735833407,-150.0,0.00010856,2]
[335007005,1723735833417,-329.91768477,0.00010856,2]
[335007006,1723735833427,-301155.00462872,0.00010859,2]
[335007007,1723735833439,-91763.73227128,0.00010859,2]
[335007008,1723735833449,-150.0,0.00010864,2]
[335007009,1723735833459,-150.0,0.00010866,2]
[335007010,1723735833469,-150.0,0.00010867,2]
[335007011,1723735833478,-1162.10919184,0.00010867,2]
[335007012,1723735833488,-150.0,0.0001087,2]
[335007013,1723735833501,-150.0,0.00010877,2]
[335007014,1723735833511,-150.0,0.0001088,2]
[335007015,1723735833520,-150.0,0.0001088,2]
[335007016,1723735833530,-150.0,0.00010882,2]
[335007017,1723735833540,-297.58045813,0.00010884,2]
[335007018,1723735833550,-150.0,0.00010886,2]
[335007019,1723735833559,-1500.0,0.00010889,2]
[335007020,1723735833569,-153.18864,0.0001089,2]
[335007021,1723735833579,-150.0,0.00010892,2]
[335007022,1723735833588,-150.0,0.00010896,2]
[335007023,1723735833598,-3099.19311271,0.00010899,2]
[335007024,1723735833607,-526.89163581,0.00010899,2]
[335007025,1723735833617,-34708.5824,0.000109,2]
[335007026,1723735833626,-443.0937,0.000109,2]
[335007027,1723735833636,-3236.1997,0.000109,2]
[335007028,1723735833646,-2029.3869,0.000109,2]
[335007029,1723735833655,-172.26639675,0.000109,2]
[335007030,1723735833665,-184.62182622,0.000109,2]
[335007031,1723735833675,-152.79080494,0.000109,2]
[335007032,1723735833685,-157.65936862,0.000109,2]
[335007033,1723735833695,-161.29938064,0.000109,2]
[335007034,1723735833871,-3312.66736103,0.000109,2]
[335007035,1723735833882,-357.81778419,0.000109,2]
[335007036,1723735833892,-656.54405044,0.000109,2]
[335007037,1723735833902,-1500.0,0.00010916,2]
[335007038,1723735833914,-150.0,0.00010918,2]
[335007039,1723735833924,-150.0,0.00010919,2]
[335007040,1723735833934,-150.0,0.00010929,2]
[335007041,1723735833946,-150.0,0.00010932,2]
[335007042,1723735833956,-150.0,0.00010934,2]
[335007043,1723735833966,-150.0,0.00010935,2]
[335007044,1723735833975,-686.4975174,0.00010939,2]
[335007045,1723735833987,-250.0,0.00010939,2]
[335007046,1723735834002,-432.92,0.00010939,2]
[335007047,1723735834017,-130.5824826,0.00010939,2]
[335007048,1723735834027,-150.0,0.00010941,2]
[335007049,1723735834037,-219.4175174,0.00010942,2]
[335007050,1723735834048,-919.70999,0.00010942,2]
[335007051,1723735834060,-360.8724926,0.00010942,2]
[335007052,1723735834070,-150.0,0.00010943,2]
[335007053,1723735834080,-1010.88971961,0.00010949,2]
[335007054,1723735834093,-347.96815075,0.00010949,2]
[335007055,1723735834106,-141.14212964,0.00010949,2]
[335007056,1723735834116,-155.0,0.00010949,2]
[335007057,1723735834127,-150.0,0.0001095,2]
[335007058,1723735834137,-150.0,0.00010954,2]
[335007059,1723735834147,-493.92566832,0.00010958,2]
[335007060,1723735834157,-628.90948243,0.00010958,2]
[335007061,1723735834166,-189.98742125,0.00010958,2]
[335007062,1723735834177,-1000.0,0.00010959,2]
[335007063,1723735834186,-1000.0,0.00010959,2]
[335007064,1723735834195,-1000.0,0.00010959,2]
[335007065,1723735834205,-1000.0,0.00010959,2]
[335007066,1723735834215,-1000.0,0.00010959,2]
[335007067,1723735834224,-1000.0,0.00010959,2]
[335007068,1723735834234,-1000.0,0.00010959,2]
[335007069,1723735834243,-1000.0,0.00010959,2]
[335007070,1723735834260,-1000.0,0.00010959,2]
[335007071,1723735834269,-1000.0,0.00010959,2]
[335007072,1723735834279,-1000.0,0.00010959,2]
[335007073,1723735834289,-1000.0,0.00010959,2]
[335007074,1723735834299,-1000.0,0.00010959,2]
[335007075,1723735834309,-1000.0,0.00010959,2]
[335007076,1723735834319,-1000.0,0.00010959,2]
[335007077,1723735834329,-1000.0,0.00010959,2]
[335007078,1723735834339,-1000.0,0.00010959,2]
[335007079,1723735834349,-1000.0,0.00010959,2]
[335007080,1723735834359,-1000.0,0.00010959,2]
[335007081,1723735834369,-1000.0,0.00010959,2]
[335007082,1723735834380,-1000.0,0.00010959,2]
[335007083,1723735834390,-653.0,0.00010959,2]
[335007084,1723735834400,-250.0,0.00010959,2]
[335007085,1723735834411,-2000.0,0.00010959,2]
[335007086,1723735834422,-5575.04,0.00010959,2]
[335007087,1723735834432,-150.0,0.00010959,2]
[335007088,1723735834442,-780.36,0.00010959,2]
[335007089,1723735834453,-150.0,0.00010959,2]
[335007090,1723735834463,-150.0,0.00010961,2]
[335007091,1723735834473,-150.0,0.00010963,2]
[335007092,1723735834484,-150.0,0.00010963,2]
[335007093,1723735834494,-150.0,0.00010972,2]
[335007094,1723735834512,-150.0,0.00010973,2]
[335007095,1723735834522,-150.0,0.00010977,2]
[335007096,1723735834531,-1500.0,0.0001098,2]
[335007097,1723735834541,-150.0,0.00010981,2]
[335007098,1723735834550,-150.0,0.00010984,2]
[335007099,1723735834560,-1500.0,0.00010987,2]
[335007100,1723735834570,-150.0,0.00010993,2]
[335007101,1723735834580,-150.0,0.00010995,2]
[335007102,1723735834590,-5231.55300436,0.00010997,2]
[335007103,1723735838363,-200.0,0.00010973,2]
[335007105,1723735838373,-53.7732008,0.00010997,2]
[335007107,1723735838423,-50651.08702014,0.00010997,2]
[335007108,1723735838433,-3362.7729648,0.00010997,2]
[335007109,1723735838444,-1319.0670716,0.00010997,2]
[335007110,1723735838453,-2639.34147816,0.00010997,2]
[335007111,1723735838462,-150.01,0.00010999,2]
[335007112,1723735838471,-210.0,0.00010999,2]
[335007113,1723735838481,-670.0,0.00011,2]
[335007114,1723735838490,-100472.01962896,0.00011,2]
[335007115,1723735838509,-325.88,0.00011,2]
[335007116,1723735838526,-1989.47898931,0.00011,2]
[335007117,1723735838541,-5015.31426035,0.00011,2]
[335007118,1723735838552,-1044.62063914,0.00011,2]
[335007119,1723735838563,-16182.84950419,0.00011,2]
[335007120,1723735838574,-4654.96312475,0.00011,2]
[335007121,1723735838585,-2118.48446416,0.00011,2]
[335007122,1723735838597,-2515.47398675,0.00011,2]
[335007123,1723735838608,-618.74932003,0.00011,2]
[335007124,1723735838629,-1427.25349251,0.00011,2]
[335007125,1723735838641,-463.9875779,0.00011,2]
[335007126,1723735838651,-7744.54762406,0.00011,2]
[335007127,1723735838663,-1035.99167023,0.00011,2]
[335007128,1723735838674,-817.15530766,0.00011,2]
[335007129,1723735838962,-127736.19999999,0.00011,2]
[335007130,1723735838974,-3513.2,0.00011,2]
[335007131,1723735838985,-94909.66814021,0.00011,2]
[335007134,1723735840207,-405.59229244,0.00011,2]
[335007136,1723735840219,-6206.23636126,0.00011,2]
[335007142,1723735840426,-25518.21873025,0.00011,2]
[335007143,1723735840437,-449.03088406,0.00011,2]
[335007144,1723735840448,-685.08301683,0.00011,2]
[335007145,1723735840459,-582.27256892,0.00011,2]
[335007146,1723735840490,-3868.2,0.00011,2]
[335007147,1723735840504,-40537.777049,0.00011,2]
[335007148,1723735840515,-1396.0175,0.00011,2]
[335007149,1723735840526,-15237.17741995,0.00011,2]
[335007150,1723735840536,-4302.89567398,0.00011,2]
[335007151,1723735840547,-1654.74945074,0.00011,2]
[335007152,1723735840558,-1568.29552831,0.00011,2]
[335007153,1723735840569,-10114.15909603,0.00011,2]
[335007155,1723735840581,-1115.35694092,0.00011,2]
[335007157,1723735840591,-530.83596342,0.00011,2]
[335007159,1723735840602,-1184.118764,0.00011,2]
[335007162,1723735840613,-598.3564947,0.00011,2]
[335007166,1723735841006,-322.56152394,0.00011,2]
[335007167,1723735841018,-1072.66280005,0.00011,2]
[335007168,1723735841030,-613.41736907,0.00011,2]
[335007169,1723735841042,-1367.76559331,0.00011,2]
[335007170,1723735841054,-722.19529931,0.00011,2]
[335007171,1723735841065,-1873.3,0.00011,2]
[335007172,1723735841077,-3705.05,0.00011,2]
[335007173,1723735841090,-334.92843367,0.00011,2]
[335007174,1723735841102,-3504.1443,0.00011,2]
[335007190,1723735844235,-14518.19882609,0.00011,2]
[335007191,1723735844248,-377.11693109,0.00011,2]
[335007192,1723735844262,-265.6000002,0.00011,2]
[335007193,1723735844273,-653.31270692,0.00011,2]
[335007194,1723735844284,-1079.31918,0.00011,2]
[335007223,1723735846361,-605.0,0.00011,2]
[335007225,1723735846370,-5666.4,0.00011,2]
[335007227,1723735846381,-637.525,0.00011,2]
[335007228,1723735846392,-147630.35305002,0.00011,2]
[335007229,1723735846402,-251.50765915,0.00011,2]
[335007230,1723735846411,-162.76853278,0.00011,2]
[335007231,1723735846421,-150.0,0.00011,2]
[335007232,1723735846430,-719694.02431275,0.00011,2]
[335007233,1723735846441,-1900.0,0.00011,2]
[335007234,1723735846453,-300.0,0.00011,2]
[335007235,1723735846464,-3368.7836437,0.00011,2]
[335007236,1723735846475,-973.24910627,0.00011,2]
[335007237,1723735846488,-644.28818466,0.00011,2]
[335007238,1723735846499,-29893.97759998,0.00011,2]
[335007239,1723735846513,-859.71593629,0.00011,2]
[335007240,1723735846532,-1353.50812905,0.00011,2]
[335007241,1723735846542,-5840.01097134,0.00011,2]
[335007242,1723735846554,-522.01898272,0.00011,2]
[335007243,1723735846591,-343.53915486,0.00011,2]
[335007244,1723735846603,-24236.90631123,0.00011,2]
[335007245,1723735846614,-16744.559,0.00011,2]
[335007246,1723735846625,-3490.9987,0.00011,2]
[335007247,1723735846637,-2366.29051615,0.00011,2]
[335007248,1723735884307,1677.6986,9.899e-05,2]
[335007256,1723735927485,-300.0,0.00010608,2]
[335007257,1723735927508,-1000.0,0.00010609,2]
[335007258,1723735927531,-7500.0,0.00010609,2]
[335007259,1723735927554,-1672.1134,0.00010609,2]
[335007260,1723735931645,-20000.0,0.00010609,2]
[335007261,1723735932119,-20000.0,0.00010609,2]
[335007262,1723736035567,-4130.79,0.0001,2]
[335007263,1723736035596,-550.0,0.0001,2]
[335007264,1723736035624,-500.0,0.00010509,2]
[335007265,1723736035652,-300.0,0.00010608,2]
[335007266,1723736035681,-150.0,0.00010608,2]
[335007267,1723736035710,-181.88317935,0.00010609,2]
[335007268,1723736035738,-162.76853278,0.00010609,2]
[335007269,1723736035770,-203327.8866,0.00010609,2]
[335007270,1723736035797,-3236.1997,0.00010609,2]
[335007271,1723736035823,-1938.7076,0.00010609,2]
[335007272,1723736035849,-7500.0,0.00010609,2]
[335007273,1723736035875,-94158.3745,0.00010609,2]
[335007274,1723736035903,-8612.58956748,0.00010609,2]
[335007275,1723736035933,-150.0,0.00010793,2]
[335007276,1723736035965,-150.0,0.0001081,2]
[335007277,1723736035992,-150.0,0.00010812,2]
[335007278,1723736036021,-150.0,0.00010858,2]
[335007279,1723736036050,-150.0,0.0001087,2]
[335007280,1723736036077,-499.99,0.0001087,2]
[335007281,1723736036105,-150.0,0.00010872,2]
[335007282,1723736036133,-150.0,0.00010885,2]
[335007283,1723736036162,-150.0,0.00010894,2]
[335007284,1723736036191,-3172.04911964,0.00010899,2]
[335007285,1723736036218,-734.36992498,0.000109,2]
[335007286,1723736036244,-327.92758471,0.000109,2]
[335007287,1723736036270,-161.29938064,0.000109,2]
[335007288,1723736036299,-150.0,0.00010907,2]
[335007289,1723736036326,-1333.6421537,0.00010911,2]
[335007290,1723736036355,-150.0,0.00010921,2]
[335007291,1723736036383,-150.0,0.00010945,2]
[335007292,1723736036412,-150.0,0.00010958,2]
[335007293,1723736036440,-250.0,0.00010959,2]
[335007294,1723736036469,-150.0,0.00010963,2]
[335007295,1723736036496,-4794.2461,0.00010993,2]
[335007296,1723736036523,-515.27605672,0.00010999,2]
[335007299,1723736070138,-3236.1997,0.00010509,2]
[335007300,1723736070165,-687.4941,0.00010509,2]
[335007301,1723736070192,-1835.81716,0.0001089,2]
[335007302,1723736070227,-2952.31101906,0.000109,2]
[335007303,1723736070260,-364.89926613,0.000109,2]
[335007304,1723736070290,-7500.0,0.000109,2]
[335007305,1723736070322,-422.69,0.00010959,2]
[335007306,1723736070354,-524.74723859,0.00010993,2]
[335007307,1723736070387,-300.0,0.00010999,2]
[335007308,1723736070418,-542.0,0.00011,2]
[335007309,1723736070454,-316678.84151622,0.00011,2]
[335007312,1723736828263,150.0,9.888e-05,2]
[335007313,1723736939583,614.8,8.931e-05,2]
[335007318,1723737032233,-155.0,0.00010097,2]
[335007319,1723737032245,-500.0,0.00010509,2]
[335007320,1723737032257,-480.5,0.0001087,2]
[335007321,1723737032270,-150.0,0.00010877,2]
[335007323,1723737032284,-1529.84763,0.0001089,2]
[335007325,1723737032295,-7500.0,0.00010897,2]
[335007328,1723737032306,-201.26135232,0.00010899,2]
[335007330,1723737032319,-245000.0,0.000109,2]
[335007331,1723737032329,-1214.3733,0.000109,2]
[335007332,1723737032341,-5969.025,0.000109,2]
[335007333,1723737032353,-319.28685789,0.000109,2]
[335007334,1723737032364,-4131.51214528,0.000109,2]
[335007335,1723737032376,-327.92758471,0.000109,2]
[335007336,1723737032387,-1968.20734604,0.000109,2]
[335007337,1723737032399,-157.41,0.00010913,2]
[335007338,1723737032410,-2000.0,0.00010959,2]
[335007339,1723737032420,-499.99,0.00010959,2]
[335007340,1723737032431,-1068.88868307,0.00010979,2]
[335007341,1723737032443,-3499.6312353,0.00010997,2]
[335007342,1723737032453,-59237.2214335,0.00010997,2]
[335007343,1723737032464,-1383.6769431,0.00010997,2]
[335007344,1723737032476,-683.0,0.00011,2]
[335007345,1723737032487,-96168.73244355,0.00011,2]
[335007346,1723737032502,-484.32,0.00011,2]
[335007347,1723737032514,-503.022718,0.00011,2]
[335007348,1723737032527,-602.93568449,0.00011,2]
[335007349,1723737032539,-399.20391486,0.00011,2]
[335007352,1723737032554,-587.636628,0.00011,2]
[335007354,1723737032567,-1608.39909701,0.00011,2]
[335007363,1723737032647,-12411.39181256,0.00011,2]
[335007365,1723737032657,-146995.73220214,0.00011,2]